Cogmind - Beta 15 @@@ ROGUE MODE // 2025.05.11 @ 14:31:05 Player: LustLizard Result: Self-destructed Performance ------------- Evolutions (3) 1500 Regions Visited (7) 1400 Robots Destroyed (78) 390 Value Destroyed (1671) 1671 Prototype IDs (9) 180 Alien Tech Used (0) 0 Bonus (300) 300 TOTAL SCORE: 5441 Bonus ------- Aligned with FarCom 300 Cogmind --------- Core Integrity 694/700 Matter 229/300 Energy 84/100 System Corruption 0% Temperature Cool (0) Movement Flying (107) Ox1 Location -7/Factory Parts ------- > --- POWER (1) -------- (None) > --- PROPULSION (4) --- Improved Flight Unit Improved Flight Unit > --- UTILITY (6) ------ Medium Storage Unit Advanced Visual Processing Unit Improved Signal Interpreter Improved Terrain Scanner Terrain Scan Processor > --- WEAPON (2) ------- Advanced Beam Rifle > --- INVENTORY (10) --- Improved Heat Sink Small Storage Unit Improved Sensor Array Improved Terrain Scanner Advanced ECM Suite Heavy Laser AWS/Thermal Advanced EMP Blaster Powered Hammer Peak State ------------ > --- POWER ------------ Light Deuterium Engine > --- PROPULSION ------- Improved Flight Unit Improved Flight Unit Improved Flight Unit Improved Flight Unit > --- UTILITY ---------- Medium Storage Unit Advanced Visual Processing Unit Improved Signal Interpreter Improved Terrain Scanner Terrain Scan Processor Transmission Jammer > --- WEAPON ----------- Advanced Beam Rifle Mining Laser > --- INVENTORY -------- Improved Heat Sink Small Storage Unit Improved Sensor Array Improved Terrain Scanner Advanced ECM Suite Heavy Laser AWS/Thermal Advanced EMP Blaster Powered Hammer [Rating: 40] Favorites ----------- Power Ion Engine Engine Ion Engine Power Core Nuclear Core Propulsion Light Treads Treads Light Treads Leg Aluminum Leg Wheel Wheel Flight Unit Improved Flight Unit Utility Large Storage Unit Device Improved Terrain Scanner Storage Large Storage Unit Processor Terrain Scan Processor Protection Light Armor Plating Weapon Field Laser Energy Gun Field Laser Energy Cannon Advanced Beam Cannon Ballistic Gun Light Assault Rifle Launcher Rocket Launcher Special Weapon Mining Laser Build | -11 -10 -9 -9 -9 -8 -8 -7 ------- Run | Yrd Mat Mat Min Exi Min Mat Fac Slots Evolved 6 | . . 2 . . . 2 2 Power . | . . . . . . . . Propulsion 2 | . . . . . . 1 1 Utility 4 | . . 2 . . . 1 1 Weapon . | . . . . . . . . Parts Attached 66 | 8 10 24 1 3 . 17 3 Power 8 | 1 1 3 . 1 . 2 . Engine 7 | 1 1 3 . 1 . 1 . Core 1 | . . . . . . 1 . Reactor . | . . . . . . . . Propulsion 14 | 4 2 2 . . . 5 1 Treads 4 | 1 1 1 . . . 1 . Leg 2 | 2 . . . . . . . Wheel 4 | 1 1 1 . . . 1 . Hover . | . . . . . . . . Flight 4 | . . . . . . 3 1 Utility 23 | 1 3 9 . 1 . 7 2 Device 9 | . 1 3 . . . 3 2 Storage 5 | 1 1 1 . . . 2 . Processor 4 | . . 2 . . . 2 . Hackware . | . . . . . . . . Protection 5 | . 1 3 . 1 . . . Artifact . | . . . . . . . . Weapon 21 | 2 4 10 1 1 . 3 . Energy Gun 15 | 1 4 7 1 1 . 1 . Energy Cannon 1 | . . 1 . . . . . Ballistic Gun 2 | 1 . 1 . . . . . Ballistic Cannon . | . . . . . . . . Launcher 2 | . . 1 . . . 1 . Special Weapon 1 | . . . . . . 1 . Impact Weapon . | . . . . . . . . Slashing Weapon . | . . . . . . . . Piercing Weapon . | . . . . . . . . Special Melee Weapon . | . . . . . . . . Unidentified Prototypes 9 | . . 4 . 1 . 4 . Parts Lost 15 | . 1 6 . . . 5 3 Power 2 | . 1 1 . . . . . Propulsion 7 | . . 2 . . . 4 1 Utility 3 | . . 2 . . . . 1 Weapon 3 | . . 1 . . . 1 1 Highest Loss Streak 4 | . 1 4 . . . 2 3 To Critical Strikes . | . . . . . . . . Average Backups 12 | 5 12 14 14 14 14 11 8 Power 1 | . 1 1 2 1 1 1 . Propulsion 1 | 2 2 2 1 2 2 . . Utility 6 | . 6 7 7 7 7 5 4 Weapon 3 | 1 1 2 4 4 4 4 3 Tool/Special . | . . . . . . . . Unused Backups 25 | . 3 8 . . 1 8 5 Power 4 | . 1 1 . . . 2 . Propulsion . | . . . . . . . . Utility 10 | . . 4 . . 1 2 3 Weapon 11 | . 2 3 . . . 4 2 Tool/Special . | . . . . . . . . Average Slot Usage (%) 98 | . 99 99 100 99 100 97 99 Engine 9 | . 13 10 11 11 11 5 6 Treads 7 | . . 8 11 11 11 11 . Leg 5 | . 22 2 . . . . . Wheel 7 | . 5 10 11 11 11 6 . Flight 4 | . . . . . . 6 30 Device 12 | . 12 11 11 11 11 15 14 Storage 10 | . 14 11 11 11 11 9 7 Processor 10 | . . 10 11 11 11 13 23 Protection 6 | . 1 10 11 11 11 6 . Energy Gun 19 | . 26 21 15 21 22 15 7 Special Weapon 1 | . . . . . . 2 6 Peak Build Rating 40 | 6 10 21 20 30 21 33 40 Average Rating 19 | 3 8 15 19 20 20 27 39 On Entrance 16 | . 6 10 19 20 21 21 32 Naked Turns . | . . . . . . . . Heaviest Build 45 | 13 32 40 39 42 40 45 20 Greatest Support 40 | 20 20 40 10 10 10 40 20 Greatest Overweight (x) 10 | . 1 3 3 4 3 10 . Average Overweight (x) 1 | . . 2 3 3 3 1 . Largest Inventory Capacity 15 | 8 15 15 15 15 15 15 10 Average Capacity 13 | 6 13 15 15 15 15 13 9 Most Carried 15 | 8 15 15 15 15 15 15 10 Average Carried 13 | 5 12 14 14 14 14 12 9 Final Capacity 15 | 8 15 15 15 15 15 8 10 Final Carried 15 | 6 15 14 15 15 15 8 10 Class Distribution -------------------- 67% | Mutant 17% | Skirmisher 15% | Scout Dominant Class ---------------- Mutant | -10/Materials Mutant | -9/Materials Mutant | -9/Mines Mutant | -9/Exiles Skirmisher | -8/Mines Skirmisher | -8/Materials Scout | -7/Factory Resources | -11 -10 -9 -9 -9 -8 -8 -7 ----------- Run | Yrd Mat Mat Min Exi Min Mat Fac Matter Collected 1139 | 271 128 289 53 . 50 348 . Remotely . | . . . . . . . . Salvage Created 2642 | . 443 1409 137 . . 606 47 Parts 131 | . 29 63 13 . . 25 1 Haulers Intercepted 9 | . 1 5 . . . 2 1 Recyclers Shooed 2 | . 1 1 . . . . . Parts Field Recycled . | . . . . . . . . Retrieved Matter . | . . . . . . . . Parts Self-Destructed . | . . . . . . . . Prevented . | . . . . . . . . Kills | -11 -10 -9 -9 -9 -8 -8 -7 ------- Run | Yrd Mat Mat Min Exi Min Mat Fac Combat Hostiles Destroyed 51 | . 11 25 4 . . 11 . Guns 45 | . 10 25 1 . . 9 . Cannons 1 | . . . . . . 1 . AOE 3 | . . . 3 . . . . Classes Destroyed 9 | . 5 2 1 . . 1 . Worker 6 | . 1 4 1 . . . . Builder 1 | . . . 1 . . . . Hauler 9 | . 1 5 . . . 2 1 Recycler 2 | . . 1 1 . . . . Operator 1 | . . . . . . 1 . Watcher 8 | . 2 5 . . . 1 . Swarmer 21 | . 6 8 4 . . 3 . Grunt 20 | . 5 10 . . . 5 . Sentry 10 | . . 7 . . . 3 . Best Kill Streak 7 | . 3 4 7 . . 3 1 Combat Bots Only 4 | . 3 3 4 . . 3 . Max Kills in Single Turn 3 | . 2 2 3 . . 1 1 Gunslinging 1 | . 1 . . . . . . Exploded 2 | . . . 2 . . . . Melee . | . . . . . . . . Uniques/NPCs Destroyed . | . . . . . . . . Combat | -11 -10 -9 -9 -9 -8 -8 -7 -------- Run | Yrd Mat Mat Min Exi Min Mat Fac Hostile Shots Fired 280 | . 55 131 9 . . 61 24 Missed 86 | . 16 40 2 . . 14 14 Hits 194 | . 39 91 7 . . 47 10 Melee 2 | . . . . . . . 2 Projectile 192 | . 39 91 7 . . 47 8 AOE 1 | . . . . . . . 1 Critical Strikes 4 | . . 3 . . . 1 . Damage Taken 2524 | . 412 1119 91 . . 766 136 Core 353 | . 93 187 8 . . 59 6 Absorbed by Shields 152 | . . . . . . 152 . Redirected to Shielding 10 | . 10 . . . . . . Regen/Repaired (Parts) 112 | . 50 30 . . . . 32 Core Remaining (%) 75 | 100 62 . . . 51 89 . Volleys Fired 229 | . 49 96 4 . . 60 20 Largest 2 | . 2 2 2 . . 2 2 Hottest 161 | . 112 126 126 . . 126 161 Shots Fired 420 | . 97 192 5 . . 103 23 Gun 390 | . 97 192 2 . . 85 14 Cannon . | . . . . . . . . Launcher 3 | . . . 3 . . . . Special 27 | . . . . . . 18 9 Kinetic 7 | . 4 3 . . . . . Thermal 410 | . 93 189 2 . . 103 23 Explosive 3 | . . . 3 . . . . Electromagnetic . | . . . . . . . . Robot Hit Streak 17 | . 14 17 2 . . 9 4 Robot Miss Streak 5 | . 5 4 1 . . 3 3 Penetration Max . | . . . . . . . . Secondary Targets 6 | . 2 4 . . . . . Max Gunslinging Chain 1 | . 1 1 . . . . . Shots Hit Robots 243 | . 56 122 2 . . 54 9 Core Hits 103 | . 24 48 7 . . 23 1 Critical Kills . | . . . . . . . . Critical Parts Destroyed . | . . . . . . . . Critical Strikes 28 | . 3 18 . . . 5 2 Burn 28 | . 3 18 . . . 5 2 Melee Attacks . | . . . . . . . . Impact . | . . . . . . . . Slashing . | . . . . . . . . Piercing . | . . . . . . . . Sneak Attacks . | . . . . . . . . Combat Hostiles . | . . . . . . . . Follow-up Attacks . | . . . . . . . . Damage Inflicted 4144 | . 741 1929 286 . . 988 200 Guns 3827 | . 741 1929 19 . . 964 174 Cannons . | . . . . . . . . Explosions 267 | . . . 267 . . . . Melee . | . . . . . . . . Ramming . | . . . . . . . . Kinetic 45 | . 10 35 . . . . . Thermal 3832 | . 731 1894 19 . . 988 200 Explosive 267 | . . . 267 . . . . Electromagnetic . | . . . . . . . . Impact . | . . . . . . . . Slashing . | . . . . . . . . Piercing . | . . . . . . . . Highest Corruption 4 | . . . . . . 4 . Average Corruption 4 | . . . . . . 4 . Corruption Purged . | . . . . . . . . Corruption Blocked . | . . . . . . . . Effects 13 | . . . . . . 13 . Message Errors 5 | . . . . . . 5 . Matter Fused 2 | . . . . . . 2 . Heat Flow Errors 3 | . . . . . . 3 . Data Loss (minor) 2 | . . . . . . 2 . Misfires 1 | . . . . . . 1 . Overload Shots . | . . . . . . . . Overflow Damage 45 | . . . 45 . . . . Projectiles . | . . . . . . . . Explosions 45 | . . . 45 . . . . Melee . | . . . . . . . . Knockbacks . | . . . . . . . . Impact . | . . . . . . . . Kinetic . | . . . . . . . . Secondary . | . . . . . . . . Self-Inflicted Damage 40 | . . . 40 . . . . Shots 1 | . . . 1 . . . . Rammed . | . . . . . . . . Targets Rammed . | . . . . . . . . Kicked . | . . . . . . . . Crushed . | . . . . . . . . Highest Temperature 349 | . 180 261 69 . . 349 84 Average Temperature 73 | . 58 68 38 . . 94 33 Received Heat Transfer 721 | . 147 324 . . . 232 18 Effects 1 | . . 1 . . . . . Energy Bleed 1 | . . 1 . . . . . Siege Activations . | . . . . . . . . Martial Activations . | . . . . . . . . Shielding Activations . | . . . . . . . . Robots Disrupted . | . . . . . . . . Combat Hostiles . | . . . . . . . . Robots Corrupted . | . . . . . . . . Combat Hostiles . | . . . . . . . . Parts Fried . | . . . . . . . . Impact Corruptions . | . . . . . . . . Robots Melted 2 | . 1 . . . . 1 . Combat Hostiles 2 | . 1 . . . . 1 . Parts Melted 37 | . 6 20 . . . 11 . Heat Transferred 10962 | . 2056 5920 37 . . 2455 494 Parts Sabotaged . | . . . . . . . . Parts Stolen . | . . . . . . . . Parts Stripped . | . . . . . . . . Power Chain Reactions . | . . . . . . . . Alert | -11 -10 -9 -9 -9 -8 -8 -7 ------- Run | Yrd Mat Mat Min Exi Min Mat Fac Maximum Alert Level 1 | . . 1 . . . . . Low Security (%) 97 | 100 100 90 100 . 100 100 100 Level 1 2 | . . 9 . . . . . Level 2 . | . . . . . . . . Level 3 . | . . . . . . . . Level 4 . | . . . . . . . . Level 5 . | . . . . . . . . High Security . | . . . . . . . . Max Security . | . . . . . . . . Peak Influence 212 | . 115 212 135 . . 81 45 Initial 73 | . . 25 73 . . . 12 Average 48 | . 23 118 69 . . 14 5 Influence Increases 1840 | . 382 808 142 . . 394 114 Destroy 0b10 Robot/C 1020 | . 220 500 80 . . 220 . Destroy 0b10 Robot/NC 135 | . 20 75 15 . . 20 5 Destroy Leader 274 | . 56 140 10 . . 66 2 Successful Hack 142 | . 41 43 . . . 26 32 Disable Machine 45 | . . . 15 . . 30 . Destroy Structure 44 | . . 5 22 . . 17 . Partial Spotted 30 | . . . . . . . 30 Lose Combat Pursuer 150 | . 45 45 . . . 15 45 Influence Decreases 1840 | . 322 680 255 75 . 366 142 Entered New Map 241 | . . 35 115 75 . . 16 Time Decay 1449 | . 312 581 140 . . 316 100 Lost Part 133 | . 10 60 . . . 50 13 Purge Threat 17 | . . 4 . . . . 13 Squads Dispatched 11 | . 1 2 . . . 3 5 Investigation 3 | . . 2 . . . 1 . Extermination 2 | . . . . . . . 2 Reinforcement 6 | . 1 . . . . 2 3 Assault . | . . . . . . . . Garrison . | . . . . . . . . Intercept . | . . . . . . . . Searches Triggered . | . . . . . . . . Construction Impeded . | . . . . . . . . Haulers Reinforced . | . . . . . . . . Active Scanning Responses . | . . . . . . . . Cargo Convoy Interrupts . | . . . . . . . . Stealth | -11 -10 -9 -9 -9 -8 -8 -7 --------- Run | Yrd Mat Mat Min Exi Min Mat Fac Distress Signals 7 | . 3 1 . . . 2 1 Communications Jammed 9 | . . . . . . . 9 Distress Signals 9 | . . . . . . . 9 Times Spotted 97 | . 23 37 4 . . 20 13 Peak Tracking Total 5 | . 3 4 4 . . 3 5 Tactical Retreats 5 | . 1 2 . . . 1 1 Traps | -11 -10 -9 -9 -9 -8 -8 -7 ------- Run | Yrd Mat Mat Min Exi Min Mat Fac Traps Triggered 4 | . . 2 . . . 1 1 Indirectly . | . . . . . . . . Trap Hack Attempts . | . . . . . . . . Triggered . | . . . . . . . . Disarmed 6 | . . . . . . . 6 Reprogrammed 1 | . 1 . . . . . . Reused . | . . . . . . . . Traps Extracted . | . . . . . . . . Installed . | . . . . . . . . Triggered . | . . . . . . . . Machines | -11 -10 -9 -9 -9 -8 -8 -7 ---------- Run | Yrd Mat Mat Min Exi Min Mat Fac Machines Disabled 3 | . . . 1 . . 2 . Max in Single Turn 1 | . . . 1 . . 1 . Garrison Access 1 | . . . . . . . 1 Machines Repaired . | . . . . . . . . Machines Dismantled . | . . . . . . . . Machines Sabotaged . | . . . . . . . . Overloaded Fab Kills . | . . . . . . . . Hacking | -11 -10 -9 -9 -9 -8 -8 -7 --------- Run | Yrd Mat Mat Min Exi Min Mat Fac Machines Accessed 39 | . 8 14 . 4 . 5 8 Terminals 29 | . 7 12 . . . 4 6 Fabricators . | . . . . . . . . Repair Stations 5 | . 1 2 . . . 1 1 Recycling Units . | . . . . . . . . Scanalyzers . | . . . . . . . . Garrison Access 1 | . . . . . . . 1 Total Hacks 181 | . 38 56 . 49 . 18 20 Successful 121 | . 21 32 . 49 . 8 11 Failed 60 | . 17 24 . . . 10 9 Catastrophic 4 | . 1 1 . . . 1 1 Database Lockouts . | . . . . . . . . Manual 87 | . 29 35 . 1 . 15 7 Terminals 120 | . 36 51 . . . 16 17 Fabricators . | . . . . . . . . Repair Stations 11 | . 2 5 . . . 2 2 Recycling Units . | . . . . . . . . Scanalyzers . | . . . . . . . . Garrison Access 1 | . . . . . . . 1 Terminal Hacks 77 | . 9 12 . 49 . 3 4 Record 49 | . . . . 49 . . . Robot Analysis 7 | . 4 2 . . . 1 . Branch Access Points 2 | . . . . . . 1 1 Emergency Access Points 2 | . . 2 . . . . . Terminal Index 1 | . . 1 . . . . . Alert Level 4 | . 1 2 . . . . 1 Unreport Threat 3 | . 1 1 . . . . 1 Locate Traps 5 | . 2 2 . . . 1 . Disarm Traps 1 | . . . . . . . 1 Reprogram Traps 1 | . 1 . . . . . . Security Status 1 | . . 1 . . . . . Hauler Manifests 1 | . . 1 . . . . . Fabricator Hacks . | . . . . . . . . Repair Station Hacks 9 | . 2 4 . . . 1 2 Scan Component 5 | . 1 2 . . . 1 1 Repair 4 | . 1 2 . . . . 1 Recycling Unit Hacks . | . . . . . . . . Scanalyzer . | . . . . . . . . Garrison Access Hacks 1 | . . . . . . . 1 Seal Access 1 | . . . . . . . 1 Unauthorized Hacks 34 | . 10 16 . . . 4 4 Terminals 34 | . 10 16 . . . 4 4 Assimilate 23 | . 6 11 . . . 3 3 Botnet 11 | . 4 5 . . . 1 1 Fabricators . | . . . . . . . . Repair Stations . | . . . . . . . . Recycling Units . | . . . . . . . . Scanalyzers . | . . . . . . . . Garrison Access . | . . . . . . . . Data Cores Recovered . | . . . . . . . . Used . | . . . . . . . . Hacking Detections 34 | . 8 14 . . . 5 7 Full Trace Events 1 | . . . . . . 1 . Feedback Events . | . . . . . . . . Feedback Blocked . | . . . . . . . . Robot Schematics Acquired . | . . . . . . . . Robots Built . | . . . . . . . . Authchips . | . . . . . . . . Time . | . . . . . . . . Total Robot Build Rating . | . . . . . . . . Part Schematics Acquired . | . . . . . . . . Parts Built . | . . . . . . . . Authchips . | . . . . . . . . Time . | . . . . . . . . Total Part Build Rating . | . . . . . . . . Parts Repaired 4 | . 1 2 . . . . 1 Time 118 | . 26 54 . . . . 38 Parts Recycled . | . . . . . . . . Recycled Matter . | . . . . . . . . Retrieved Matter . | . . . . . . . . Retrieved Components . | . . . . . . . . Parts Scanalyzed . | . . . . . . . . Part Schematics Acquired . | . . . . . . . . Parts Damaged . | . . . . . . . . Bothacking | -11 -10 -9 -9 -9 -8 -8 -7 ------------ Run | Yrd Mat Mat Min Exi Min Mat Fac Used RIF Installer . | . . . . . . . . Robots Hacked . | . . . . . . . . Non-combat . | . . . . . . . . Combat . | . . . . . . . . Robot Hacks Applied . | . . . . . . . . Relay Couplers Released . | . . . . . . . . Fabnet Peak Effective % . | . . . . . . . . Robots Rewired . | . . . . . . . . Allies Hacked . | . . . . . . . . Hacks Repelled . | . . . . . . . . Allies | -11 -10 -9 -9 -9 -8 -8 -7 -------- Run | Yrd Mat Mat Min Exi Min Mat Fac Total Allies 2 | . 1 . . . . . 1 Largest Group 1 | . 1 1 . . . . 1 Highest-Rated Group 10 | . 10 10 . . . . 10 Highest-Rated Ally 10 | . 10 10 . . . . 10 Total Orders . | . . . . . . . . Ally Attacks . | . . . . . . . . Total Damage . | . . . . . . . . Kills . | . . . . . . . . Allies Corrupted . | . . . . . . . . Allies Melted . | . . . . . . . . Intel | -11 -10 -9 -9 -9 -8 -8 -7 ------- Run | Yrd Mat Mat Min Exi Min Mat Fac Active Infowar (turns) 5842 | . . 2142 289 761 465 1413 772 Optics 3383 | . . 1976 . . . 635 772 Terrain 3845 | . . 166 289 761 465 1392 772 Jamming 235 | . . . . . . . 235 Robot Analysis Total 7 | . 4 2 . . . 1 . Derelict Logs Recovered . | . . . . . . . . Drone Launches . | . . . . . . . . Drone Recoveries . | . . . . . . . . Exploration | -11 -10 -9 -9 -9 -8 -8 -7 ------------- Run | Yrd Mat Mat Min Exi Min Mat Fac Turns Passed 8268 | 60 1622 2309 289 761 465 1990 772 Spaces Moved 5961 | 51 978 1281 216 594 346 1077 1418 Core 14 | 13 . . . . . 1 . Treads 70 | . . 60 . . . 10 . Legs 477 | 6 471 . . . . . . Wheels 3560 | 32 507 1221 216 594 346 644 . Hover . | . . . . . . . . Flight 1840 | . . . . . . 422 1418 Fastest Speed 31 | 50 115 125 125 125 125 34 31 Average Speed 100 | 77 139 131 125 125 125 95 31 Slowest Speed 550 | 120 190 240 125 140 125 550 31 Overloaded Moves . | . . . . . . . . Propulsion Burnouts . | . . . . . . . . Robots Hopped 9 | . . . . . . 6 3 Potential Cave-ins . | . . . . . . . . Cave-ins Triggered 1 | . . . . . . 1 . Exploration Rate (%) 60 | 5 99 92 39 93 55 62 35 Regions Visited 7 Branch Regions 3 Pre-discovered Areas 1 | . . . . 1 . . . Known Exits Taken 1 | . . . . . . 1 . Unknown Exits Taken 6 | 1 1 1 1 1 1 . . Scrap Searched 3 | . . . 1 . 2 . . Spaces Dug 17 | . . . . . . 17 . Terrain Destroyed 40 | . . . 23 . . 17 . Melee . | . . . . . . . . Projectile 17 | . . . . . . 17 . AOE 23 | . . . 23 . . . . Terrain Rammed . | . . . . . . . . Walls Destroyed . | . . . . . . . . Machines Disabled . | . . . . . . . . Actions | -11 -10 -9 -9 -9 -8 -8 -7 --------- Run | Yrd Mat Mat Min Exi Min Mat Fac Total 7756 | 70 1139 1725 229 613 379 1896 1705 Wait 1297 | . 65 258 8 . 32 679 255 Move 5936 | 50 977 1280 215 593 345 1064 1412 Hop 9 | . . . . . . 6 3 Pick Up 111 | 12 24 35 1 7 1 24 7 Fast Attach 1 | . . . . . . . 1 Attach 60 | 6 8 21 . 5 . 17 3 Detach 2 | . . . . . . 2 . Swap 38 | 2 4 9 1 . . 20 2 Drop 73 | . 12 26 . 8 1 24 2 Fire 229 | . 49 96 4 . . 60 20 Melee . | . . . . . . . . Ram . | . . . . . . . . Kick . | . . . . . . . . Crush . | . . . . . . . . Escape Stasis . | . . . . . . . . Rewire . | . . . . . . . . Trap . | . . . . . . . . Miscellaneous . | . . . . . . . . Route ------- -11/Scrapyard -10/Materials (discovered 6 exits: *Mat x3 / [*Min x2] / [*Sub]) -9/Materials (discovered 6 exits: *Mat x2 / [*Min x2] / [*Sto x2]) -9/Mines (discovered 2 exits: Mat / *Exi) -9/Exiles (discovered 2 exits: [*Min x2]) -8/Mines (discovered 2 exits: *Mat x2) -8/Materials -7/Factory (discovered 4 exits: *Fac x2 / Low x2) History --------- Turn | Location | Event 15 | -11/Scrapyard | Discovered new exit (range 15) 61 | -11/Scrapyard | Entered Materials 199 | -10/Materials | Discovered new exit (range 12) 217 | -10/Materials | Discovered new exit (range 11) 309 | -10/Materials | Build established: Mutant 425 | -10/Materials | Discovered new exit (range 16) 545 | -10/Materials | Repaired Med. Laser 1016 | -10/Materials | Discovered new exit (range 10) 1208 | -10/Materials | Discovered new exit (range 12) 1223 | -10/Materials | Discovered new exit (range 15) 1683 | -10/Materials | Entered another Materials area 1683 | -9/Materials | Accompanied by 1 ally 1683 | -9/Materials | Evolved 2 slots: Utility x2 1778 | -9/Materials | Discovered new exit (range 13) 1814 | -9/Materials | Met 8R-AWN 1819 | -9/Materials | Discovered new exit (range 12) 1883 | -9/Materials | Repaired Terrain Scan Processor 2347 | -9/Materials | Lost 4 parts (1p1n1u1w) 2772 | -9/Materials | Discovered new exit (range 9) 3288 | -9/Materials | Discovered new exit (range 16) 3807 | -9/Materials | Discovered new exit (range 11) 3809 | -9/Materials | Discovered new exit (range 16) 3867 | -9/Materials | Repaired Field Laser 3992 | -9/Materials | Entered Mines 3993 | -9/Mines | Discovered new exit (range 12) 3994 | -9/Mines | Followed 8R-AWN into the Mines 4024 | -9/Mines | Discovered new exit (range 5) 4281 | -9/Mines | Entered Exiles 4299 | -9/Exiles | Discovered new exit (range 15) 4313 | -9/Exiles | Welcomed by 8R-AWN 4334 | -9/Exiles | Met EX-HEX 4421 | -9/Exiles | Met EX-DEC 4481 | -9/Exiles | Visited The Gauntlet 4643 | -9/Exiles | Learned location of Zion (-6) 4689 | -9/Exiles | Discovered new exit (range 10) 4764 | -9/Exiles | Met EX-BIN 4865 | -9/Exiles | Aligned with FarCom system 4866 | -9/Exiles | Given EX-Vault access code 4896 | -9/Exiles | Opened EX-Vault 4906 | -9/Exiles | Found Prototype Energy Gun 4907 | -9/Exiles | Identified AWS/Thermal 4949 | -9/Exiles | Warned to stay clear of 0b10 Research branches 5042 | -9/Exiles | Left Exiles lab with AWS/Thermal 5042 | -9/Exiles | Entered Mines 5043 | -8/Mines | Discovered new exit (range 12) 5054 | -8/Mines | Discovered new exit (range 5) 5332 | -8/Mines | Build established: Skirmisher 5507 | -8/Mines | Entered Materials 5507 | -8/Materials | Evolved 2 slots: Propulsion x1, Utility x1 6526 | -8/Materials | Build established: Mutant 6852 | -8/Materials | Build established: Skirmisher 6986 | -8/Materials | Crushed by falling debris 7313 | -8/Materials | Build established: Scout 7489 | -8/Materials | Discovered new exit (range 19) 7496 | -8/Materials | Identified exit to Factory 7497 | -8/Materials | Entered Factory 7497 | -7/Factory | Evolved 2 slots: Propulsion x1, Utility x1 7748 | -7/Factory | Discovered new exit (range 12) 7753 | -7/Factory | Identified exit to Factory 7776 | -7/Factory | Identified exit to Lower Caves 7920 | -7/Factory | Repaired Lgt. Deuterium Engine 8254 | -7/Factory | Discovered exit to Factory (range 16) 8269 | -7/Factory | Self-destructed Last Messages --------------- 08148_ K-01 Serf cleans the Matter Pump. 08155_ K-01 Serf cleans the Pressure Siphon. 08184_ ALERT: Potential suspicious activity detected, Programmers report to Factory Zone 9B. 08254_ ALERT: Suspicious intruders detected, dispatching Cutter reinforcements to area. 08254_ EXIT=FOUND: FACTORY 08257_ Mining Laser destroyed. 08259_ C-17 Slicer knocked back. 08261_ Transmission Jammer destroyed. 08267_ Triggered Blade Trap. 08267_ Massive razor-sharp blades shoot up from within the floor. 08267_ Adv. Beam Rifle severed. 08267_ Imp. Flight Unit severed. 08267_ Lgt. Deuterium Engine severed. 08267_ Acquired Adv. Beam Rifle. 08267_ Imp. Flight Unit destroyed. Map ----- +----------------------------------------------------+ | + """"""" """"""" #?????"??????????????????? | | # """"""" """"""" #?????"??????????????????? | | """ # """"""" """"""" #?#??#???????????????????? | | """ # """"""" """"""" #????????????????????????? | | """ # #????????????????????????? | | # ] #??#?#???????????????????? | | ###### #????? ??????????????????? | | ##?#?######+#####################????????????????? | | ####### #???#?# ##########???????? | | ####### k ???????? | | ??????? | | T" r ??????? | | Y " ??????? | | ?????? | | ?????? | | ####### ??????? | | # # # #?#??# a ######???????????? | | # # ####### ###????### ###????????????????? | | # #???????#?###?????????# #??????????????????? | | # #???##?#??????????????# #????"?????????????? | | # ##?????##?#????????#??# +??????????????????? | | # #?#??#?#??????????????# #? ????????????????? | | # #?###??#??????????????# #??????????????????? | | # #########???? ??????#?# #????? ????????????? | | + p H #??#?#cc #??????????????????? | | # #########??? ?????????#@c #??????????????????? | | # # ####?? ??????? * ##?????????????????? | | + [ ###?#??? ??? #??????????????????? | | # #""" #????????? k #??????????????????? | | # #""" #?#????? ![[ #??????????????????? | | # #?"" ##???? ![ #??????????????????? | | # # #????# """"" ![ ? ????????????????? | | # ########??? """"" #?????"???????????? | | # ###????#?# """ #?????????????????? | | # #????????# +???? ????????????? | | # #######??# ????? #??????s??????????? | | + #??#????? #???????s?????????? | | # #?????????###### #?????????????????? | | # ### #????????####+####?????????????????? | | # " +??????????????????????????????????? | | ####+###### #??????????????????????????????????? | | #? ??????##? ????????????????????????????????? | | # ????????????????????????????????????????? | | # ]] #???????????????????????????????????????? | | # ] ]! #???????????????????????????????????????? | | ##########???????????????????????????????????????? | | | | | | | | | +----------------------------------------------------+ Best States ------------- Heat Dissipation 48 Energy Generation 14 Energy Capacity 280 Matter Stores 300 Matter Capacity 300 Sight Range 20 Terrain Scan Range 16 Terrain Scan Density 85 Jamming Range 12 Armor Coverage 150 Power Shielding 33 Evasion (%) 63 Recoil Reduction 2 Item Schematics ----------------- None Robot Schematics ------------------ None Fabricated ------------ Nothing Repaired ---------- Med. Laser | 28% | -10/Materials Terrain Scan Processor | 27% | -9/Materials Field Laser | 82% | -9/Materials Lgt. Deuterium Engine | 36% | -7/Factory Alien Tech Used ----------------- None Achievements -------------- None Challenges ------------ None Game ------ Seed ThermicInertialAccelerator Manual? 0 Play Time 01:29:14 Cumulative 137.3 hours Start 2025.05.11 @ 12:59:25 End 2025.05.11 @ 14:31:05 Sessions 1 Manual Loads 0 Difficulty Rogue Special Mode None Game No. 130 Rogue 130 Adventurer 0 Explorer 0 Win Type - Total 1 Types 1/0/0/0/0/0/0/0/0/0 Lore% 37 Gallery% 42 Achievement% 37 Wizard Run 0 Options --------- Layout 1 ASCII 0 Keyboard 0 Movement Numpad Keybinds 0 Fullscreen 1 Font 24/Smallcaps Map View 50x35 Zoom Use 0% Tactical HUD 1 Map Filters NONE Filters NONE Steam 1 RUN: 36d07238-71c9-44ee-954b-0210b13d5097